{"text_format":"3","workbook":"xlsx","n_sheets":1,"sheets":["مصاريف شركة ناشئة"],"not_rendered":{"defined_names":1},"read":"whole","date_system":"1900"}

{"sheet":"مصاريف شركة ناشئة","index":0,"n_rows":120,"n_cols":4,"rows_kept":120,"merged":[[1,1,1,3],[10,1,10,3],[17,1,17,3],[25,1,25,3],[34,1,34,3],[42,1,42,3],[50,1,50,3],[55,1,55,3],[57,1,57,3],[59,1,59,3],[60,1,60,3],[69,1,69,3],[76,1,76,3],[81,1,81,3],[82,1,82,3],[90,1,90,3],[102,1,102,3],[110,1,110,3],[115,1,115,3]]}
["مصاريف شركة ناشئة",null,null,"اسم الشركة، LTD"]
[null,"ملاحظة قبل استخدام ورقة العمل هذه\nتقريبا كل من بدأ شركات ناشئة في أي وقت مضى قام بتقليل تقدير التكاليف ثم واجه خطر التشغيل مع احتياطيات رأس المال غير كافية. مفتاح لتجنب حدوث المأزق هذا هو اتخاذ طريقة صارمة للبحث والتخطيط. سيرشدك قالب \"مصاريف شركة ناشئة\" خلال العملية.\n\nابدأ بتقدير المصاريف\nما هي التكلفة المطلوبة منك لبدء شركتك واستمرارها؟ مفتاح الدقة هنا هو الانتباه للتفاصيل. قم بإعداد قائمة لكل فئة من المصاريف بكل شيء ستحتاج إلى شراؤه. سيتضمن ذلك كل من الأصول المادية (على سبيل المثال، المعدات والمخزون) والخدمات (على سبيل المثال، التجديد والتأمين). ثم حدد من أين يمكنك شراء هذه البضائع أو الخدمات. البحث عن أكثر من مورد واحد؛ مثال: محل مقارنة. لا تلتفت إلى السعر فقط، لأن شروط الدفع والتسليم والموثوقية والخدمات هي أمور ضرورية أيضاً. "]
[]
[null,"مصاريف شركة ناشئة"]
[null,"المباني والعقارات"," ","المبلغ"]
[null,"الشراء",null,{"v":0,"d":"ر.س.‏ 0.00"}]
[null,"البناء",null,{"v":0,"d":"ر.س.‏ 0.00"}]
[null,"التجديد",null,{"v":0,"d":"ر.س.‏ 0.00"}]
[null,"غير ذلك",null,{"v":0,"d":"ر.س.‏ 0.00"}]
[null,"الإجمالي",null,{"$f":"SUBTOTAL(109,العقارات[المبلغ])","v":{"v":0,"d":"ر.س.‏ 0.00"}}]
[]
[null,"تحسينات في الأصول المُستأجرة"," ","المبلغ"]
[null,"عنصر 1",null,{"v":0,"d":"ر.س.‏ 0.00"}]
[null,"عنصر 2",null,{"v":0,"d":"ر.س.‏ 0.00"}]
[null,"عنصر 3",null,{"v":0,"d":"ر.س.‏ 0.00"}]
[null,"عنصر 4",null,{"v":0,"d":"ر.س.‏ 0.00"}]
[null,"الإجمالي",null,{"$f":"SUBTOTAL(109,التحسينات[المبلغ])","v":{"v":0,"d":"ر.س.‏ 0.00"}}]
[]
[null,"قائمة المعدات الرأسمالية"," ","المبلغ"]
[null,"أثاث",null,{"v":0,"d":"ر.س.‏ 0.00"}]
[null,"المعدات",null,{"v":0,"d":"ر.س.‏ 0.00"}]
[null,"التجهيزات الثابتة",null,{"v":0,"d":"ر.س.‏ 0.00"}]
[null,"الآلات",null,{"v":0,"d":"ر.س.‏ 0.00"}]
[null,"غير ذلك",null,{"v":0,"d":"ر.س.‏ 0.00"}]
[null,"الإجمالي",null,{"$f":"SUBTOTAL(109,رأس_المال[المبلغ])","v":{"v":0,"d":"ر.س.‏ 0.00"}}]
[]
[null,"مصاريف الموقع والمسؤول"," ","المبلغ"]
[null,"الإيجار",null,{"v":0,"d":"ر.س.‏ 0.00"}]
[null,"ودائع المرافق العامة",null,{"v":0,"d":"ر.س.‏ 0.00"}]
[null,"الرسوم القانونية ورسوم المحاسبة",null,{"v":0,"d":"ر.س.‏ 0.00"}]
[null,"التأمين مسبق الدفع",null,{"v":0,"d":"ر.س.‏ 0.00"}]
[null,"الرواتب قبل الافتتاح ",null,{"v":0,"d":"ر.س.‏ 0.00"}]
[null,"غير ذلك",null,{"v":0,"d":"ر.س.‏ 0.00"}]
[null,"الإجمالي",null,{"$f":"SUBTOTAL(109,مصروفات_المسؤول[المبلغ])","v":{"v":0,"d":"ر.س.‏ 0.00"}}]
[]
[null,"مخزون الافتتاح"," ","المبلغ"]
[null,"الفئة 1",null,{"v":0,"d":"ر.س.‏ 0.00"}]
[null,"الفئة 2",null,{"v":0,"d":"ر.س.‏ 0.00"}]
[null,"الفئة 3",null,{"v":0,"d":"ر.س.‏ 0.00"}]
[null,"الفئة 4",null,{"v":0,"d":"ر.س.‏ 0.00"}]
[null,"الفئة 5",null,{"v":0,"d":"ر.س.‏ 0.00"}]
[null,"الإجمالي",null,{"$f":"SUBTOTAL(109,مخزون_الافتتاح[المبلغ])","v":{"v":0,"d":"ر.س.‏ 0.00"}}]
[]
[null,"مصروفات الدعاية والترويج"," ","المبلغ"]
[null,"الدعاية",null,{"v":0,"d":"ر.س.‏ 0.00"}]
[null,"اللافتات",null,{"v":0,"d":"ر.س.‏ 0.00"}]
[null,"الطباعة",null,{"v":0,"d":"ر.س.‏ 0.00"}]
[null,"السفر/الترفيه",null,{"v":0,"d":"ر.س.‏ 0.00"}]
[null,"فئات أخرى/إضافية",null,{"v":0,"d":"ر.س.‏ 0.00"}]
[null,"الإجمالي",null,{"$f":"SUBTOTAL(109,المصروفات_الترويجية[المبلغ])","v":{"v":0,"d":"ر.س.‏ 0.00"}}]
[]
[null,"المصروفات الأخرى"," ","المبلغ"]
[null,"مصاريف أخرى 1",null,{"v":0,"d":"ر.س.‏ 0.00"}]
[null,"مصاريف أخرى 2",null,{"v":0,"d":"ر.س.‏ 0.00"}]
[null,"الإجمالي",null,{"$f":"SUBTOTAL(109,مصروفات_أخرى[المبلغ])","v":{"v":0,"d":"ر.س.‏ 0.00"}}]
[]
[null,"محجوزات احتياطية",null,{"v":0,"d":"ر.س.‏ 0.00"}]
[]
[null,"رأس مال متداول ",null,{"v":0,"d":"ر.س.‏ 0.00"}]
[]
[null,"إضافة محجوزات احتياطية\nتأكد من التوضيح في سردك كيف تمكنت من تحديد المبلغ الذي يتم وضعه في هذا الاحتياطي. \n\nتحديد التدفق النقدي\nلا يمكنك بدء شركتك باستخدام حساب بنكي فارغ. أنت بحاجة احتياطي نقدي لتلبية المصاريف بينما يسير العمل طبيعياً. في النهاية يجب أن تقوم بعمل تقدير لمدة 12 شهراً للتدفق النقدي. هذا ما سوف يجعلك تمارس تقديرك لاحتياجات رأس مال المتداول. الآن، أما ترك هذا السطر فارغاً أو وضع أفضل تقدير تقريبي. بعد إكمال التدفق النقدي الخاص بك، يمكنك العودة وإدخال المقدار الذي تم البحث عنه بعناية.\n\nأدخل مصادر رأس المال\nالآن بعد أن قدرت حجم رأس المال المطلوب للبدء، يجب أن توجه انتباهك إلى الجزء العلوي من ورقة العمل هذه. أدخل المبالغ التي ستضعها بنفسك، وكم سوف يتم وضعه من قِبل الشركاء أو المستثمرين، ومقدار ما سيتم توفيره عن طريق الاقتراض."]
[]
[null,"مصادر رأس المال"]
[null,"استثمار المالك (الاسم ونسبة الملكية %)"," ","المبلغ"]
[null,"اسمك والنسبة المئوية لملكيتك",null,{"v":0,"d":"ر.س.‏ 0.00"}]
[null,"مستثمرين أخريين",null,{"v":0,"d":"ر.س.‏ 0.00"}]
[null,"مستثمرين أخريين",null,{"v":0,"d":"ر.س.‏ 0.00"}]
[null,"مستثمرين أخريين",null,{"v":0,"d":"ر.س.‏ 0.00"}]
[null,"الإجمالي",null,{"$f":"SUBTOTAL(109,استثمارات_الملاك[المبلغ])","v":{"v":0,"d":"ر.س.‏ 0.00"}}]
[]
[null,"القروض البنكية"," ","المبلغ"]
[null,"بنك 1",null,{"v":0,"d":"ر.س.‏ 0.00"}]
[null,"بنك 2",null,{"v":0,"d":"ر.س.‏ 0.00"}]
[null,"بنك 3",null,{"v":0,"d":"ر.س.‏ 0.00"}]
[null,"بنك 4",null,{"v":0,"d":"ر.س.‏ 0.00"}]
[null,"الإجمالي",null,{"$f":"SUBTOTAL(109,القروض_المصرفية[المبلغ])","v":{"v":0,"d":"ر.س.‏ 0.00"}}]
[]
[null,"قروض أخرى"," ","المبلغ"]
[null,"مصدر 1",null,{"v":0,"d":"ر.س.‏ 0.00"}]
[null,"مصدر 2",null,{"v":0,"d":"ر.س.‏ 0.00"}]
[null,"الإجمالي",null,{"$f":"SUBTOTAL(109,القروض_الأخرى[المبلغ])","v":{"v":0,"d":"ر.س.‏ 0.00"}}]
[]
[null,"توفير إثبات ضمانات القرض\nإذا كنت ستستخدم هذه الخطة لدعم طلب قرض بنكي، استخدم المقطع الموجود بالقرب من الأسفل لإظهار ما هي الأصول المتوفرة كضمانات لحماية القرض ولتقدير القيمة من هذه العناصر. كن مستعداً لتقديم بعض إثباتات لتقديرك لقيم الضمانات."]
[]
[null,"بيان ملخص"]
[null,"مصدر رأس المال"," ","الإجمالي"]
[null,"استثمارات المالكين واستثمارات أخرى",null,{"$f":"استثمارات_الملاك[[#Totals],[المبلغ]]","v":{"v":0,"d":"ر.س.‏ 0.00"}}]
[null,"القروض البنكية",null,{"$f":"القروض_المصرفية[[#Totals],[المبلغ]]","v":{"v":0,"d":"ر.س.‏ 0.00"}}]
[null,"قروض أخرى",null,{"$f":"القروض_الأخرى[[#Totals],[المبلغ]]","v":{"v":0,"d":"ر.س.‏ 0.00"}}]
[null,"الإجمالي",null,{"$f":"SUBTOTAL(109,مصادر_رأس_المال[الإجمالي])","v":{"v":0,"d":"ر.س.‏ 0.00"}}]
[]
[null,"مصاريف شركة ناشئة"," ","الإجمالي"]
[null,"المباني والعقارات",null,{"$f":"العقارات[[#Totals],[المبلغ]]","v":{"v":0,"d":"ر.س.‏ 0.00"}}]
[null,"تحسينات في الأصول المؤجرة",null,{"$f":"التحسينات[[#Totals],[المبلغ]]","v":{"v":0,"d":"ر.س.‏ 0.00"}}]
[null,"معدات رأس المال",null,{"$f":"رأس_المال[[#Totals],[المبلغ]]","v":{"v":0,"d":"ر.س.‏ 0.00"}}]
[null,"مصاريف الموقع والإدارة",null,{"$f":"مصروفات_المسؤول[[#Totals],[المبلغ]]","v":{"v":0,"d":"ر.س.‏ 0.00"}}]
[null,"مخزون الافتتاح",null,{"$f":"مخزون_الافتتاح[[#Totals],[المبلغ]]","v":{"v":0,"d":"ر.س.‏ 0.00"}}]
[null,"مصاريف الدعاية والترويج",null,{"$f":"المصروفات_الترويجية[[#Totals],[المبلغ]]","v":{"v":0,"d":"ر.س.‏ 0.00"}}]
[null,"مصروفات أخرى",null,{"$f":"مصروفات_أخرى[[#Totals],[المبلغ]]","v":{"v":0,"d":"ر.س.‏ 0.00"}}]
[null,"صندوق الطوارئ",null,{"$f":"SUM('مصاريف شركة ناشئة'!$C$57)","v":{"v":0,"d":"ر.س.‏ 0.00"}}]
[null,"رأس المال المتداول",null,{"$f":"SUM('مصاريف شركة ناشئة'!$C$59)","v":{"v":0,"d":"ر.س.‏ 0.00"}}]
[null,"الإجمالي",null,{"$f":"SUBTOTAL(109,مصروفات_الشركة_الناشئة[الإجمالي])","v":{"v":0,"d":"ر.س.‏ 0.00"}}]
[]
[null,"مقترح ضمانات الأوراق المالية وضمانات القروض"]
[null,"ضمانات القروض","الوصف","القيمة"]
[null,"العقارات",null,{"v":0,"d":"ر.س.‏ 0.00"}]
[null,"ضمانات أخرى",null,{"v":0,"d":"ر.س.‏ 0.00"}]
[null,"ضمانات أخرى",null,{"v":0,"d":"ر.س.‏ 0.00"}]
[null,"ضمانات أخرى",null,{"v":0,"d":"ر.س.‏ 0.00"}]
[null,"الإجمالي",null,{"$f":"SUBTOTAL(109,الضمانات[القيمة])","v":{"v":0,"d":"ر.س.‏ 0.00"}}]
[]
[null,"المُلاك"," ","  "]
[null,"اكتب اسمك هنا"]
[null,"مالك آخر"]
[null,"مالك آخر"]
[]
[null,"ضامن القرض (من غير المُلاك)"," ","  "]
[null,"ضامن القرض 1"]
[null,"ضامن القرض 2"]
[null,"ضامن القرض 3"]